bitfinex-derivatives/quotes_SOLF0:USTF0_20250320
["timestamp","ask_amount","ask_price","bid_price","bid_amount"]
[1742434358316,0.05022237,133.03,133.01,36.16977718]
[1742434359418,0.05022237,133.03,133.02,7.516]
[1742434359615,0.05022237,133.03,133.01,28.65357718]
[1742434359918,0.05022237,133.03,133.01,36.16977718]
[1742434361218,0.05022237,133.03,133.01,28.65357718]
[1742434361917,0.05022237,133.03,133.01,36.17007718]
[1742434362213,0.05022237,133.03,133.01,28.65357718]
[1742434362616,0.05022237,133.03,133.02,7.516]
[1742434363220,0.05022237,133.03,133.01,28.65357718]
[1742434363615,0.05022237,133.03,133.01,36.17007718]
[1742434366118,0.05022237,133.03,133.02,7.516]
[1742434368820,0.05022237,133.03,133.01,36.16987718]
[1742434370722,0.05022237,133.03,133.02,7.516]
[1742434371816,0.05022237,133.03,133.01,36.16987718]
[1742434373722,0.05022237,133.03,133.02,7.516]
[1742434375123,0.05022237,133.03,133.01,36.16987718]
[1742434375622,0.05022237,133.03,133.01,28.65357718]
[1742434376614,0.05022237,133.03,133.02,7.516]
[1742434377920,0.05022237,133.03,133.02,18.45038802]
[1742434378224,17.18478802,133.09,133.06,7.5135]
[1742434378526,17.18478802,133.09,133.07,28.32]
[1742434379325,17.23938763,133.09,133.07,28.36925352]
[1742434380224,0.05459961,133.09,133.07,35.88225352]
[1742434380425,0.05459961,133.09,133.07,28.36925352]
[1742434381024,10.93438802,133.08,133.07,0.04925352]
[1742434381228,10.93438802,133.08,133.05,28.3]
[1742434381417,10.93438802,133.07,133.05,28.3]
[1742434381623,7.5137,133.06,133.05,28.3]
[1742434382924,10.93438802,133.07,133.05,28.3]
[1742434383122,10.93438802,133.07,133.05,35.8139]
[1742434383524,10.93438802,133.07,133.05,28.3]
[1742434385926,7.5137,133.06,133.05,28.3]
[1742434386827,7.5137,133.06,133.04,0.05454603]
[1742434386828,7.5143,133.05,133.04,28.33454603]
[1742434389035,18.44868802,133.05,133.04,0.05454603]
[1742434389235,7.5154,133.03,133.02,28.24]
[1742434389430,18.44978802,133.03,133.02,28.24]
[1742434389631,7.5163,133.02,133.0,28.28]
[1742434390230,7.5165,133.01,133.0,28.28]
[1742434391337,7.56549685,133.02,133.0,28.28]
[1742434391838,7.56549685,133.02,132.99,7.5176]
[1742434392138,0.04929685,133.02,133.0,28.3]
[1742434392840,7.5173,133.0,132.98,28.3]
[1742434393640,18.45108802,133.01,132.98,28.3]
[1742434393844,18.45108802,133.01,132.98,35.8182]
[1742434394142,18.45108802,133.01,132.98,28.3]
[1742434395446,7.5167,133.01,132.98,28.3]
[1742434397547,10.98368487,133.02,132.93,2.0612]
[1742434397750,10.93438802,133.0,132.96,10.93438802]
[1742434397945,0.04885582,132.99,132.97,28.24]
[1742434398149,0.04885582,132.99,132.98,10.93438802]
[1742434398948,0.04885582,132.99,132.98,18.45258802]
[1742434400150,7.5158,133.03,132.98,10.93438802]
[1742434400343,10.93438802,133.03,132.98,10.93438802]
[1742434400647,7.5166,133.01,132.98,18.45258802]
[1742434400847,10.93438802,133.03,132.98,18.45258802]
[1742434401447,7.5706024,133.02,132.99,0.04885582]
[1742434401743,0.0543024,133.02,132.99,7.56635582]
[1742434401939,0.0543024,133.02,133.0,28.62]
[1742434404049,7.5165,133.01,133.0,28.62]
[1742434404545,7.5165,133.01,132.99,28.62885582]
[1742434405152,7.5171,133.0,132.99,28.62885582]
[1742434405854,0.0543024,133.02,132.99,28.62885582]
[1742434406448,7.5166,133.01,132.99,28.62885582]
[1742434408746,7.5705024,133.02,132.99,36.14645582]
[1742434409554,7.5166,133.01,132.99,28.62885582]
[1742434412555,7.5171,133.0,132.99,28.62885582]
[1742434412853,0.0543024,133.02,132.99,28.62885582]
[1742434413450,7.5169,133.01,132.99,28.62885582]
[1742434413949,0.0543024,133.02,132.99,28.62885582]
[1742434414146,7.5165,133.01,132.99,28.62885582]
[1742434416655,7.5171,133.0,132.99,0.04885582]
[1742434416861,10.93438802,133.0,132.93,12.99558802]
[1742434417054,12.93588802,133.01,132.95,10.93438802]
[1742434417359,7.5176,133.0,132.97,10.93438802]
[1742434417855,12.93588802,133.01,132.96,10.93438802]
[1742434418055,0.052781,133.0,132.96,10.93438802]
[1742434418256,10.93438802,132.99,132.95,28.7]
[1742434418556,7.5191,132.97,132.95,28.7]
[1742434418950,7.57150114,132.97,132.95,28.7]
[1742434419155,0.05240114,132.97,132.95,28.7]
[1742434419861,7.57120114,132.97,132.95,28.7]
[1742434420060,0.05240114,132.97,132.95,28.7]
[1742434420856,7.5162,133.02,132.96,10.93438802]
[1742434421061,7.5162,133.02,132.99,10.93438802]
[1742434421262,13.02528802,133.03,132.99,39.67438802]
[1742434421462,20.54098802,133.03,132.99,39.67438802]
[1742434422162,0.05058962,133.02,133.0,0.05240114]
[1742434422355,7.56668962,133.02,133.0,0.05240114]
[1742434422551,0.05058962,133.02,133.0,0.05240114]
[1742434423562,0.05058962,133.02,133.0,7.56950114]
[1742434424558,0.05058962,133.02,133.01,7.5165]
[1742434424760,28.68,133.09,133.01,10.93438802]
[1742434424957,10.93438802,133.08,133.03,10.93438802]
[1742434425255,9.4834,133.07,133.03,18.44938802]
[1742434425458,1.9698,133.07,133.03,18.44938802]
[1742434425660,1.9698,133.07,133.03,10.93438802]
[1742434425854,0.05467988,133.06,133.04,0.05671055]
[1742434426558,0.05467988,133.06,133.05,39.57438802]
[1742434427567,0.05467988,133.06,133.05,47.08868802]
[1742434428751,0.05467988,133.06,133.05,36.1543]
[1742434429258,0.05467988,133.06,133.05,28.64]
[1742434433065,7.56837988,133.06,133.05,28.64]
[1742434433357,0.05467988,133.06,133.05,28.64]
[1742434434865,7.56837988,133.06,133.05,28.64]
[1742434435266,0.05467988,133.06,133.05,28.64]
[1742434435664,0.05467988,133.06,133.05,36.1543]
[1742434439262,0.05467988,133.06,133.05,28.64]
[1742434440171,0.05467988,133.06,133.05,36.1543]
[1742434442778,0.05467988,133.06,133.05,28.64]
[1742434443075,0.05467988,133.06,133.04,18.50579857]
[1742434443268,0.05467988,133.06,133.05,28.72]
[1742434447074,0.05467988,133.06,133.04,10.99109857]
[1742434447278,0.05467988,133.06,133.05,28.62]
[1742434448474,0.05467988,133.06,133.05,28.6]
[1742434450581,0.05467988,133.06,133.05,36.1143]
[1742434458487,375.93438802,133.14,133.09,7.5118]
[1742434458687,10.93438802,133.14,133.1,28.42]
[1742434459081,18.44398802,133.14,133.1,28.42]
[1742434459282,10.93438802,133.14,133.1,28.42]
[1742434459486,7.5107,133.12,133.1,28.42]
[1742434459785,7.5107,133.12,133.11,0.0481411]
[1742434460183,18.44508802,133.12,133.11,0.0481411]
[1742434460383,10.93438802,133.12,133.09,28.38]
[1742434460591,10.93438802,133.11,133.09,28.38]
[1742434460883,18.44578802,133.11,133.09,28.38]
[1742434461488,18.49794173,133.11,133.09,28.43431384]
[1742434461782,7.56355371,133.11,133.09,28.43431384]
[1742434462487,7.5114,133.1,133.09,28.43431384]
[1742434462886,0.05215371,133.11,133.09,28.43431384]
[1742434463991,7.5114,133.1,133.09,28.43431384]
[1742434465889,0.05215371,133.11,133.09,28.43431384]
[1742434466088,0.05215371,133.11,133.1,10.93438802]
[1742434466486,0.05215371,133.11,133.1,18.44578802]
[1742434469495,0.05215371,133.11,133.1,7.5114]
[1742434469694,0.05215371,133.11,133.1,18.44578802]
[1742434471599,17.00658802,133.2,133.1,18.45438802]
[1742434471894,17.00658802,133.2,133.17,7.5074]
[1742434472097,17.00658802,133.2,133.17,35.8274]
[1742434472702,17.06435749,133.2,133.17,35.8831589]
[1742434473097,6.12996947,133.2,133.17,35.8831589]
[1742434474304,6.12996947,133.2,133.17,28.3757589]
[1742434474507,6.12996947,133.2,133.17,39.31014692]
[1742434474703,4.16706947,133.2,133.17,39.31014692]
[1742434475996,4.16706947,133.2,133.17,46.81764692]
[1742434476197,4.16706947,133.2,133.17,39.31014692]
[1742434476708,7.5065,133.19,133.17,28.3757589]
[1742434477205,22.60745749,133.2,133.17,28.3757589]
[1742434479110,7.5064,133.19,133.17,28.3757589]
[1742434479710,22.60745749,133.2,133.17,28.3757589]
[1742434480711,22.60745749,133.2,133.17,35.8831589]
[1742434480906,11.67306947,133.2,133.17,46.81754692]
[1742434481111,7.5064,133.19,133.17,39.31014692]
[1742434481711,7.5064,133.19,133.18,28.18]
[1742434482514,11.67306947,133.2,133.18,28.18]
[1742434483613,9.61906947,133.2,133.18,28.18]
[1742434484819,7.5064,133.19,133.18,28.18]
[1742434487823,7.5069,133.18,133.17,0.0557589]
[1742434490124,2.11306947,133.2,133.17,0.0557589]
[1742434490312,2.11306947,133.2,133.17,10.99014692]
[1742434490513,0.05776947,133.2,133.17,10.99014692]
[1742434491523,7.56396947,133.2,133.17,18.49724692]
[1742434491923,7.56396947,133.2,133.17,10.99014692]
[1742434493228,7.5069,133.18,133.17,0.0557589]
[1742434493725,18.44128802,133.18,133.17,0.0557589]
[1742434494023,7.5086,133.15,133.14,28.08]
[1742434494221,10.93438802,133.18,133.13,10.93438802]
[1742434494427,7.5092,133.14,133.13,39.01438802]
[1742434494620,7.5092,133.14,133.13,10.93438802]
[1742434494821,7.5092,133.14,133.13,28.06]
[1742434495027,0.05462067,133.15,133.12,0.04877157]
[1742434495223,10.98900869,133.15,133.12,0.04877157]
[1742434495625,7.5098,133.13,133.12,0.04877157]
[1742434497123,10.98900869,133.15,133.12,0.04877157]
[1742434497124,7.5093,133.14,133.12,0.04877157]
[1742434497626,0.05462067,133.15,133.12,0.04877157]
[1742434498130,0.05462067,133.15,133.12,10.98315959]
[1742434499828,0.05462067,133.15,133.12,18.49315959]
[1742434500627,0.05462067,133.15,133.13,18.44408802]
[1742434500831,0.05462067,133.15,133.14,10.93438802]
[1742434501025,0.05462067,133.15,133.14,18.44358802]
[1742434501225,0.05462067,133.15,133.14,10.93438802]
[1742434502331,0.05462067,133.15,133.12,18.49325959]
[1742434504129,0.05462067,133.15,133.12,10.98315959]
[1742434504532,0.05462067,133.15,133.13,7.5092]
[1742434505431,7.56362067,133.15,133.12,0.04877157]
[1742434506131,0.05462067,133.15,133.13,10.93438802]
[1742434506435,0.05462067,133.15,133.14,7.5092]
[1742434507239,0.05462067,133.15,133.12,0.04877157]
[1742434507535,0.05462067,133.15,133.12,10.98315959]
[1742434507737,7.56332067,133.15,133.12,18.49325959]
[1742434507939,0.05462067,133.15,133.12,10.98315959]
[1742434508438,7.5093,133.14,133.12,0.04877157]
[1742434509135,7.5098,133.13,133.12,0.04877157]
[1742434509339,10.93438802,133.13,133.07,10.93438802]
[1742434509534,10.93438802,133.11,133.07,38.99438802]
[1742434509939,10.93438802,133.11,133.07,28.06]
[1742434510339,10.93438802,133.11,133.05,10.93438802]
[1742434510537,10.93438802,133.09,133.08,0.05127627]
[1742434510839,18.44638802,133.09,133.08,0.05127627]
[1742434511237,0.05275607,133.1,133.08,0.05127627]
[1742434512340,0.05275607,133.1,133.09,28.02]
[1742434514141,0.05275607,133.1,133.09,35.532]
[1742434514442,0.05275607,133.1,133.09,28.02]
[1742434515444,0.05275607,133.1,133.09,35.532]
[1742434515744,0.05275607,133.1,133.09,28.02]
[1742434515941,0.05275607,133.1,133.08,0.05127627]
[1742434516142,0.05275607,133.1,133.09,27.98]
[1742434516348,0.05275607,133.1,133.08,0.05127627]
[1742434516749,2.18705607,133.1,133.08,0.05127627]
[1742434516949,7.512,133.09,133.08,0.05127627]
[1742434517550,9.69855607,133.1,133.08,0.05127627]
[1742434517755,2.18705607,133.1,133.08,0.05127627]
[1742434517950,0.05275607,133.1,133.08,0.05127627]
[1742434518348,0.05275607,133.1,133.08,7.56347627]
[1742434519741,0.05275607,133.1,133.09,7.512]
[1742434519941,0.05275607,133.1,133.09,35.432]
[1742434520451,0.05275607,133.1,133.09,27.92]
[1742434521055,0.05275607,133.1,133.08,0.05127627]
[1742434521453,7.512,133.09,133.08,0.05127627]
[1742434522351,7.5137,133.06,132.98,260.48770532]
[1742434522661,10.93438802,133.09,132.98,260.48770532]
[1742434522662,42.84638802,133.09,132.98,259.18]
[1742434522969,7.5135,133.07,133.03,18.44938802]
[1742434523563,0.05593287,133.06,133.03,18.44938802]
[1742434524366,0.05593287,133.06,133.04,7.5147]
[1742434524569,0.05593287,133.06,133.05,10.93438802]
[1742434525666,0.05593287,133.06,133.05,46.40868802]
[1742434526266,277.62498802,133.12,133.08,7.5122]
[1742434526568,270.11438802,133.12,133.09,27.96]
[1742434526968,7.5113,133.11,133.09,27.96]
[1742434527470,7.56707539,133.11,133.09,28.00933999]
[1742434528368,0.05577539,133.11,133.09,28.00933999]
[1742434528869,0.05577539,133.11,133.1,7.5114]
[1742434530372,0.05577539,133.11,133.09,35.52113999]
[1742434532467,0.05577539,133.11,133.09,28.00933999]
[1742434533169,7.5114,133.1,133.09,0.04933999]
[1742434533472,0.05577539,133.11,133.07,27.86]
[1742434533666,7.5133,133.07,133.06,27.86]
[1742434533871,47.04383769,133.1,133.05,27.86]
[1742434534066,47.04383769,133.1,133.04,27.86]
[1742434534671,7.5138,133.06,133.04,27.86]
[1742434535068,0.05032089,133.08,133.04,27.86]
[1742434536474,7.5135,133.07,133.04,27.86]
[1742434536669,0.05032089,133.08,133.04,27.86]
[1742434538477,7.5135,133.07,133.04,27.86]
[1742434539070,0.05032089,133.08,133.04,27.86]
[1742434539275,7.514,133.06,133.04,27.8]
[1742434539671,0.05032089,133.08,133.04,27.8]
[1742434539871,7.5143,133.05,133.04,27.8]
[1742434540381,0.05032089,133.08,133.04,35.3148]
[1742434540772,0.05032089,133.08,133.04,27.8]
[1742434541075,7.56332089,133.08,133.05,7.5142]
[1742434541274,0.05032089,133.08,133.04,27.8]
[1742434541577,7.5135,133.07,133.04,27.8]
[1742434541777,0.05032089,133.08,133.04,27.8]
[1742434541973,7.56312089,133.08,133.04,35.3143]
[1742434542279,0.05032089,133.08,133.05,17.06953769]
[1742434542473,0.05032089,133.08,133.06,7.5132]
[1742434542674,0.05032089,133.08,133.07,27.8]
[1742434542967,0.05032089,133.08,133.07,35.3131]
[1742434545277,0.05032089,133.08,133.07,27.8]
[1742434546576,0.05032089,133.08,133.05,35.2541]
[1742434546786,0.05032089,133.08,133.05,27.74]
[1742434547080,0.05032089,133.08,133.01,21.03763769]
[1742434547081,7.5135,133.07,133.03,27.74]
[1742434547480,0.05032089,133.08,133.03,35.2551]
[1742434547681,7.5137,133.06,133.03,35.2551]
[1742434548782,7.5133,133.07,133.04,7.5147]
[1742434548982,0.05032089,133.08,133.03,44.80953769]
[1742434549376,0.05032089,133.08,133.05,7.5137]
[1742434549575,0.05032089,133.08,133.06,27.72]
[1742434550583,0.05032089,133.08,133.06,35.2336]
[1742434551184,0.05032089,133.08,133.07,7.5131]
[1742434552784,0.05032089,133.08,133.06,35.2336]
[1742434554484,0.05032089,133.08,133.06,27.72]
[1742434556687,0.05032089,133.08,133.05,27.72]
[1742434557288,7.5135,133.07,133.05,27.72]
[1742434558888,0.05032089,133.08,133.05,35.2341]
[1742434559087,0.05032089,133.08,133.05,27.72]
[1742434559288,0.05032089,133.08,133.05,44.78953769]
[1742434559487,0.05032089,133.08,133.06,7.5134]
[1742434559688,0.05032089,133.08,133.05,44.78953769]
[1742434560086,0.05032089,133.08,133.06,7.5134]
[1742434560486,0.05032089,133.08,133.05,44.78953769]
[1742434561492,0.05032089,133.08,133.07,7.5131]
[1742434563692,0.05032089,133.08,133.07,24.58263769]
[1742434570594,268.7968,133.15,133.07,17.06953769]
[1742434570800,2.1379,133.17,133.12,17.06953769]
[1742434570989,27.72,133.2,133.13,27.72]
[1742434571194,43.35352697,133.21,133.16,10.91011177]
[1742434571393,43.35352697,133.21,133.16,38.63011177]
[1742434571594,10.91011177,133.2,133.16,38.63011177]
[1742434571800,7.5068,133.19,133.17,0.04978074]
[1742434572803,18.47298472,133.2,133.17,0.04978074]
[1742434572997,10.96698472,133.2,133.17,0.04978074]
[1742434573201,0.05687295,133.2,133.17,0.04978074]
[1742434573391,7.5069,133.18,133.17,0.04978074]
[1742434573589,17.0491976,133.18,133.13,27.7]
[1742434573797,7.5091,133.15,133.1,27.7]
[1742434574594,7.5091,133.15,133.1,35.2112]
[1742434574799,7.56026342,133.14,133.1,35.2112]
[1742434575598,7.56026342,133.14,133.11,7.5109]
[1742434575599,0.05106342,133.14,133.11,7.5109]
[1742434575998,0.05106342,133.14,133.12,7.5099]
[1742434576196,0.05106342,133.14,133.13,27.7]
[1742434577496,0.05106342,133.14,133.13,35.2098]
[1742434578098,0.05106342,133.14,133.13,27.7]
[1742434579502,0.05106342,133.14,133.13,35.2098]
[1742434583102,0.05106342,133.14,133.13,52.2589976]
[1742434588303,0.05106342,133.14,133.13,27.7]
[1742434589199,0.05106342,133.14,133.08,17.0491976]
[1742434589403,0.05106342,133.14,133.09,27.7]
[1742434590704,7.51,133.13,133.1,7.511]
[1742434591606,7.56046342,133.14,133.1,7.511]
[1742434591810,0.05106342,133.14,133.09,27.7]
[1742434592211,0.05106342,133.14,133.11,7.5106]
[1742434592413,0.05106342,133.14,133.12,27.7]
[1742434592705,0.05106342,133.14,133.13,7.5098]
[1742434592910,1.9842,133.21,133.12,44.7491976]
[1742434593106,1.9842,133.21,133.14,17.0491976]
[1742434593311,1.9842,133.21,133.16,7.5081]
[1742434593706,9.4895,133.21,133.16,7.5081]
[1742434593909,9.4895,133.21,133.15,27.7]
[1742434594112,0.05537222,133.2,133.17,0.05020045]
[1742434594313,7.56117222,133.2,133.18,27.7]
[1742434594508,0.05537222,133.2,133.18,27.7]
[1742434599116,0.05537222,133.2,133.18,35.2069]
[1742434601018,0.05537222,133.2,133.19,7.5064]
[1742434601808,2.0248,133.25,133.18,38.60618424]
[1742434602019,12.93098424,133.25,133.21,10.90618424]
[1742434602214,12.93098424,133.25,133.22,27.7]
[1742434602714,7.5042,133.23,133.2,27.7]
[1742434603114,7.55284887,133.23,133.2,27.7489469]
[1742434603819,7.5048,133.22,133.2,27.7489469]
[1742434604019,0.04864887,133.23,133.2,27.7489469]
[1742434604219,0.04864887,133.23,133.2,0.0489469]
[1742434604416,27.74864887,133.23,133.2,0.0489469]
[1742434604617,7.5061,133.2,133.18,27.7]
[1742434604814,27.7,133.23,133.18,27.7]
[1742434605019,17.04000747,133.24,133.18,27.7]
[1742434605622,7.5059,133.2,133.18,27.7]
[1742434606016,4.0396,133.21,133.18,0.05182757]
[1742434606223,7.5075,133.17,133.16,27.7]
[1742434606620,4.0396,133.21,133.16,27.7]
[1742434607420,0.05542385,133.2,133.16,27.7]
[1742434607819,0.05542385,133.2,133.12,17.04000747]
[1742434607820,7.5075,133.17,133.12,17.04000747]
[1742434608114,7.5075,133.17,133.13,27.7]
[1742434608320,7.55793493,133.16,133.14,27.7]
[1742434608522,4.0396,133.21,133.14,27.7]
[1742434608721,7.55806798,133.16,133.14,27.7]
[1742434608921,7.5081,133.16,133.14,27.7]
[1742434609120,7.56509651,133.16,133.14,27.7]
[1742434611625,7.5086,133.15,133.14,27.7]
[1742434612016,0.05699651,133.16,133.1,276.14000747]
[1742434612325,0.05699651,133.16,133.11,27.7]
[1742434612520,7.5101,133.13,133.11,27.7]
[1742434612923,7.55828478,133.13,133.11,27.7]
[1742434613926,0.04818478,133.13,133.11,27.7]
[1742434614330,7.55798478,133.13,133.11,27.7]
[1742434615125,0.04818478,133.13,133.11,27.7]
[1742434618029,7.55798478,133.13,133.11,27.7]
[1742434618327,0.04818478,133.13,133.11,27.7]
[1742434619930,0.04818478,133.13,133.11,35.2108]
[1742434621133,0.04818478,133.13,133.11,27.7]
[1742434623236,0.04818478,133.13,133.12,10.91697189]
[1742434625337,0.04818478,133.13,133.12,27.7]
[1742434626044,0.04818478,133.13,133.12,38.61697189]
[1742434626441,0.04818478,133.13,133.12,46.12727189]
[1742434627342,0.04818478,133.13,133.12,38.61697189]
[1742434627538,0.04818478,133.13,133.1,10.91697189]
[1742434627747,0.04818478,133.13,133.11,27.7]
[1742434629347,0.04818478,133.13,133.11,35.2107]
[1742434630551,0.04818478,133.13,133.11,27.7]
[1742434631344,0.04818478,133.13,133.06,259.1]
[1742434631345,10.96515667,133.13,133.06,259.1]
[1742434631539,10.96515667,133.13,133.07,38.61697189]
[1742434631749,10.91697189,133.13,133.07,38.61697189]
[1742434631950,7.5118,133.1,133.07,46.12997189]
[1742434632150,0.04886384,133.11,133.07,38.61697189]
[1742434632351,10.96583573,133.11,133.07,38.61697189]
[1742434632650,10.96583573,133.11,133.07,27.7]
[1742434632651,7.5124,133.09,133.07,27.7]
[1742434633150,10.91697189,133.08,133.01,56.62109106]
[1742434633349,10.91697189,133.06,133.01,49.10469106]
[1742434633539,0.0480222,133.06,133.01,49.10469106]
[1742434633740,0.0480222,133.06,133.03,10.91697189]
[1742434633951,0.0480222,133.06,133.04,27.76]
[1742434634145,0.0480222,133.06,133.04,35.2744]
[1742434634839,0.0480222,133.06,133.04,27.76]
[1742434636450,0.0480222,133.06,133.03,27.74]
[1742434637352,0.0480222,133.06,133.03,35.2549]
[1742434638249,0.0480222,133.06,133.03,27.74]
[1742434638448,10.96499409,133.06,133.03,27.74]
[1742434639354,0.0480222,133.06,133.03,35.2554]
[1742434639651,0.0480222,133.06,133.03,27.74]
[1742434640243,0.0480222,133.06,133.04,10.91697189]
[1742434640748,0.0480222,133.06,133.05,7.5143]
[1742434641549,0.0480222,133.06,133.04,18.43167189]
[1742434642547,0.0480222,133.06,133.05,7.5143]
[1742434644650,0.0480222,133.06,133.04,18.43157189]
[1742434647056,0.0480222,133.06,133.04,7.5146]
[1742434647257,0.0480222,133.06,133.03,27.74]
[1742434647452,10.96499409,133.06,133.02,10.91697189]
[1742434647657,7.5149,133.04,133.01,27.7]
[1742434647859,10.91697189,133.06,133.0,38.61697189]
[1742434648055,0.05423085,133.04,133.02,10.91697189]
[1742434648357,0.05423085,133.04,133.03,7.5154]
[1742434649360,0.05423085,133.04,133.03,35.2354]
[1742434649656,259.26,133.09,133.03,27.72]
[1742434650153,259.26,133.09,133.04,10.91697189]
[1742434650361,7.513,133.08,133.04,10.91697189]
[1742434650761,0.05610881,133.07,133.05,0.0511494]
[1742434651061,7.56930881,133.07,133.05,0.0511494]
[1742434651360,0.05610881,133.07,133.05,0.0511494]
[1742434651862,7.56930881,133.07,133.05,0.0511494]
[1742434652264,0.05610881,133.07,133.05,0.0511494]
[1742434653658,7.56970881,133.07,133.05,0.0511494]
[1742434654157,0.05610881,133.07,133.05,0.0511494]
[1742434654958,0.05610881,133.07,133.06,38.63697189]
[1742434656061,0.05610881,133.07,133.06,46.15067189]
[1742434656257,0.05610881,133.07,133.06,35.2337]
[1742434656458,0.05610881,133.07,133.06,27.72]
[1742434659257,0.05610881,133.07,133.05,0.0511494]
[1742434659558,7.5137,133.06,133.05,27.7511494]
[1742434661367,7.5137,133.06,133.05,0.0511494]
[1742434663167,0.05610881,133.07,133.05,0.0511494]
[1742434663668,0.05610881,133.07,133.06,10.91697189]
[1742434664064,0.05610881,133.07,133.06,18.43067189]
[1742434667770,22.35997189,133.14,133.06,10.91697189]
[1742434667972,18.42637189,133.14,133.1,10.91697189]
[1742434668172,18.42637189,133.14,133.11,27.7]
[1742434668373,7.5099,133.13,133.11,27.7]
[1742434668767,0.05391852,133.13,133.11,27.7517612]
[1742434668973,7.5103,133.12,133.11,27.7517612]
[1742434669177,10.91697189,133.12,133.09,27.7]
[1742434669372,0.05391852,133.13,133.08,27.7]
[1742434669373,10.91697189,133.1,133.08,27.7]
[1742434669966,7.512,133.09,133.08,27.7]
[1742434673076,18.47750996,133.1,133.08,27.7]
[1742434673270,10.96580996,133.1,133.08,27.7]
[1742434674574,7.512,133.09,133.08,27.7]
[1742434678477,7.5126,133.08,133.07,0.05099506]
[1742434679479,18.42957189,133.08,133.07,0.05099506]
[1742434680285,10.91697189,133.08,132.99,10.91697189]
[1742434680491,10.91697189,133.05,133.01,10.91697189]
[1742434681171,18.43157189,133.05,133.01,10.91697189]
[1742434681375,0.05449542,133.04,133.02,0.02625411]
[1742434681983,0.05449542,133.04,133.03,27.7]
[1742434682683,0.05449542,133.04,133.03,35.2154]
[1742434683084,0.05449542,133.04,133.02,0.02625411]
[1742434683676,7.56969542,133.04,133.02,0.02625411]
[1742434685786,0.05449542,133.04,133.02,0.02625411]
[1742434686287,7.5154,133.03,133.02,0.02625411]
[1742434686480,18.43237189,133.03,133.02,0.02625411]
[1742434690082,7.5164,133.02,132.97,38.63697189]
[1742434690582,7.5164,133.02,132.98,7.5179]
[1742434691187,0.05116362,133.01,132.98,7.5179]
[1742434691689,10.96813551,133.01,132.96,10.91697189]
[1742434691886,10.96813551,133.01,132.97,27.72]
[1742434692387,7.5174,133.0,132.97,35.2385]
[1742434693689,18.48493551,133.01,132.97,35.2385]
[1742434695786,18.48493551,133.01,132.97,7.5185]
[1742434697487,0.05116362,133.01,132.99,10.91697189]
[1742434697688,0.05116362,133.01,133.0,27.72]
[1742434699390,7.56766362,133.01,133.0,27.72]
[1742434700088,0.05116362,133.01,133.0,27.72]
[1742434700793,0.05116362,133.01,133.0,35.2371]
[1742434701287,265.34,133.09,133.0,35.24]
[1742434701594,265.34,133.09,133.04,10.91697189]
[1742434701789,10.91697189,133.08,133.05,27.72]
[1742434702184,7.5143,133.05,133.03,27.72]
[1742434702592,7.5143,133.05,133.03,27.77085494]
[1742434702787,0.05764523,133.05,133.03,27.77085494]
[1742434704484,0.05764523,133.05,133.03,35.28615494]
[1742434704679,0.05764523,133.05,133.04,10.91697189]
[1742434705092,0.05764523,133.05,133.03,27.77085494]
[1742434710503,7.57204523,133.05,133.03,27.77085494]
[1742434710700,0.05764523,133.05,133.03,27.77085494]
[1742434710900,10.91697189,133.04,133.03,0.05085494]
[1742434711099,10.91697189,133.04,132.99,27.72]
[1742434711301,10.91697189,133.02,132.99,27.72]
[1742434712201,10.96937162,133.02,132.99,27.72]
[1742434712497,18.48557162,133.02,132.99,27.72]
[1742434712901,7.5165,133.01,132.99,27.72]
[1742434713108,7.5165,133.01,132.98,18.43487189]
[1742434713295,7.5165,133.01,132.99,27.72]
[1742434714297,18.48557162,133.02,132.99,27.72]
[1742434716010,18.48557162,133.02,132.99,35.2374]
[1742434718509,0.05239973,133.02,133.0,7.5169]
[1742434719508,0.05239973,133.02,132.99,35.2374]
[1742434720610,0.05239973,133.02,133.0,7.5169]
[1742434721311,0.05239973,133.02,132.99,35.2374]
[1742434723207,7.56839973,133.02,132.99,35.2374]
[1742434723812,0.05239973,133.02,132.99,35.2374]
[1742434724611,7.56839973,133.02,132.99,35.2374]
[1742434725007,7.56839973,133.02,132.99,27.72]
[1742434725008,0.05239973,133.02,132.99,27.72]
[1742434725206,10.96937162,133.02,132.99,27.72]